[Event "Titled Tuesday Blitz April 4 Early 2023"]
[White "Hakobyan, Aram"]
[Black "Zhigalko, Sergei"]
[WhiteFideId "13306677"]
[BlackFideId "13502956"]
[WhiteElo "2584"]
[BlackElo "2626"]
[Result "1-0"]
[Round "11"]
[TimeControl "180+2"]
[Date "2023.04.04"]
[WhiteClock "0:00:10"]
[BlackClock "0:00:04"]

1. d4 {[%clk 0:03:00]}  Nf6 {[%clk 0:03:00]} 2. c4 {[%clk 0:03:01]}  e6 {[%clk 0:03:00]} 3. Nc3 {[%clk 0:03:02]}  Bb4 {[%clk 0:03:01]} 4. e3 {[%clk 0:03:02]}  O-O {[%clk 0:03:01]} 5. a3 {[%clk 0:03:03]}  Bxc3+ {[%clk 0:03:00]} 6. bxc3 {[%clk 0:03:04]}  c5 {[%clk 0:02:58]} 7. Ne2 {[%clk 0:03:04]}  Nc6 {[%clk 0:02:46]} 8. Ng3 {[%clk 0:03:04]}  d6 {[%clk 0:02:17]} 9. Ra2 {[%clk 0:03:04]}  e5 {[%clk 0:02:13]} 10. d5 {[%clk 0:03:02]}  Na5 {[%clk 0:02:14]} 11. e4 {[%clk 0:03:03]}  Nd7 {[%clk 0:01:49]} 12. Bd3 {[%clk 0:03:02]}  Nb6 {[%clk 0:01:44]} 13. O-O {[%clk 0:02:59]}  Nbxc4 {[%clk 0:01:39]} 14. f4 {[%clk 0:03:00]}  exf4 {[%clk 0:01:31]} 15. Bxf4 {[%clk 0:03:01]}  f6 {[%clk 0:01:31]} 16. Nh5 {[%clk 0:02:55]}  Ne5 {[%clk 0:01:10]} 17. h3 {[%clk 0:02:35]}  Bd7 {[%clk 0:01:07]} 18. Raf2 {[%clk 0:02:32]}  Qe7 {[%clk 0:01:05]} 19. Be2 {[%clk 0:02:23]}  Rae8 {[%clk 0:01:00]} 20. Qc1 {[%clk 0:02:14]}  Rf7 {[%clk 0:00:47]} 21. Ng3 {[%clk 0:02:11]}  b5 {[%clk 0:00:41]} 22. Bh5 {[%clk 0:02:11]}  g6 {[%clk 0:00:36]} 23. Be2 {[%clk 0:02:10]}  Nb3 {[%clk 0:00:30]} 24. Qd1 {[%clk 0:02:07]}  c4 {[%clk 0:00:29]} 25. Be3 {[%clk 0:01:29]}  Nc5 {[%clk 0:00:28]} 26. Bd4 {[%clk 0:01:30]}  a6 {[%clk 0:00:24]} 27. Qd2 {[%clk 0:01:24]}  Ref8 {[%clk 0:00:18]} 28. Qh6 {[%clk 0:01:20]}  Ned3 {[%clk 0:00:17]} 29. Bxd3 {[%clk 0:01:19]}  Nxd3 {[%clk 0:00:16]} 30. Re2 {[%clk 0:01:12]}  Bc8 {[%clk 0:00:15]} 31. Re3 {[%clk 0:01:01]}  Ne5 {[%clk 0:00:15]} 32. Qf4 {[%clk 0:01:00]}  Re8 {[%clk 0:00:11]} 33. Qh4 {[%clk 0:00:55]}  Bd7 {[%clk 0:00:10]} 34. Re2 {[%clk 0:00:55]}  Ref8 {[%clk 0:00:09]} 35. Be3 {[%clk 0:00:53]}  Nd3 {[%clk 0:00:08]} 36. Bh6 {[%clk 0:00:51]}  Re8 {[%clk 0:00:09]} 37. Be3 {[%clk 0:00:47]}  Bc8 {[%clk 0:00:09]} 38. Bd4 {[%clk 0:00:48]}  Ref8 {[%clk 0:00:09]} 39. Qh6 {[%clk 0:00:42]}  Bd7 {[%clk 0:00:08]} 40. Qe3 {[%clk 0:00:37]}  Re8 {[%clk 0:00:08]} 41. Qh6 {[%clk 0:00:30]}  Ref8 {[%clk 0:00:08]} 42. Kh2 {[%clk 0:00:29]}  Re8 {[%clk 0:00:07]} 43. Kh1 {[%clk 0:00:29]}  Ref8 {[%clk 0:00:05]} 44. Re3 {[%clk 0:00:30]}  Ne5 {[%clk 0:00:05]} 45. Ree1 {[%clk 0:00:28]}  Re8 {[%clk 0:00:05]} 46. Re2 {[%clk 0:00:28]}  Nd3 {[%clk 0:00:04]} 47. Re3 {[%clk 0:00:26]}  Ne5 {[%clk 0:00:03]} 48. Qf4 {[%clk 0:00:23]}  Bc8 {[%clk 0:00:03]} 49. Qf2 {[%clk 0:00:23]}  Ref8 {[%clk 0:00:04]} 50. Qe2 {[%clk 0:00:23]}  Qd7 {[%clk 0:00:03]} 51. Qd1 {[%clk 0:00:19]}  Qe7 {[%clk 0:00:04]} 52. Re2 {[%clk 0:00:20]}  Bb7 {[%clk 0:00:04]} 53. Ref2 {[%clk 0:00:19]}  Nd3 {[%clk 0:00:04]} 54. Rf3 {[%clk 0:00:20]}  Ne5 {[%clk 0:00:05]} 55. Rf4 {[%clk 0:00:20]}  Bc8 {[%clk 0:00:05]} 56. Qd2 {[%clk 0:00:20]}  Nd3 {[%clk 0:00:06]} 57. R4f3 {[%clk 0:00:19]}  Ne5 {[%clk 0:00:05]} 58. Rf4 {[%clk 0:00:18]}  Re8 {[%clk 0:00:05]} 59. Rh4 {[%clk 0:00:18]}  Nd3 {[%clk 0:00:04]} 60. Qh6 {[%clk 0:00:18]}  Ne5 {[%clk 0:00:03]} 61. Rhf4 {[%clk 0:00:17]}  Ref8 {[%clk 0:00:03]} 62. Rh4 {[%clk 0:00:16]}  Bd7 {[%clk 0:00:03]} 63. Ne2 {[%clk 0:00:14]}  Rg7 {[%clk 0:00:03]} 64. Qd2 {[%clk 0:00:13]}  Re8 {[%clk 0:00:02]} 65. Rhf4 {[%clk 0:00:13]}  Rf7 {[%clk 0:00:02]} 66. Ng3 {[%clk 0:00:12]}  Ref8 {[%clk 0:00:03]} 67. R4f2 {[%clk 0:00:11]}  Nd3 {[%clk 0:00:03]} 68. Rf3 {[%clk 0:00:11]}  Ne5 {[%clk 0:00:04]} 69. Rf4 {[%clk 0:00:12]}  Rg7 {[%clk 0:00:04]} 70. Ne2 {[%clk 0:00:12]}  Rgf7 {[%clk 0:00:04]} 71. Rh4 {[%clk 0:00:11]}  Bc8 {[%clk 0:00:04]} 72. Rhf4 {[%clk 0:00:10]}  Nd3 {[%clk 0:00:04]} 73. Rh4 {[%clk 0:00:10]}  Ne5 {[%clk 0:00:03]} 74. Qh6 {[%clk 0:00:09]}  Rg7 {[%clk 0:00:03]} 75. Ng3 {[%clk 0:00:08]}  Bd7 {[%clk 0:00:03]} 76. Rhf4 {[%clk 0:00:08]}  Nf7 {[%clk 0:00:02]} 77. Qxg7+ {[%clk 0:00:08]}  Kxg7 {[%clk 0:00:03]} 78. Bxf6+ {[%clk 0:00:08]}  Qxf6 {[%clk 0:00:01]} 79. Rxf6 {[%clk 0:00:09]}  Be8 {[%clk 0:00:01]} 80. e5 {[%clk 0:00:10]}  dxe5 {[%clk 0:00:02]} 81. Ne4 {[%clk 0:00:10]}  Rg8 {[%clk 0:00:02]} 82. d6 {[%clk 0:00:10]}  Nh6 {[%clk 0:00:03]} 83. Re6 {[%clk 0:00:10]}  Nf5 {[%clk 0:00:03]} 84. g4 {[%clk 0:00:10]}  Ne3 {[%clk 0:00:03]} 85. Re7+ {[%clk 0:00:11]}  Kh8 {[%clk 0:00:03]} 86. Re1 {[%clk 0:00:09]}  Nd5 {[%clk 0:00:03]} 87. Rxe5 {[%clk 0:00:10]}  Bc6 {[%clk 0:00:03]} 88. Kh2 {[%clk 0:00:09]}  Nf4 {[%clk 0:00:03]} 89. d7 {[%clk 0:00:07]}  Bxd7 {[%clk 0:00:03]} 90. Nf6 {[%clk 0:00:08]}  Nd3 {[%clk 0:00:02]} 91. Re7 {[%clk 0:00:08]}  Rg7 {[%clk 0:00:02]} 92. Re8+ {[%clk 0:00:08]}  Bxe8 {[%clk 0:00:03]} 93. Rxe8+ {[%clk 0:00:09]}  Rg8 {[%clk 0:00:04]} 94. Rxg8# {[%clk 0:00:10]} 1-0


[Site "https://www.chess.com"]

[Event "Titled Tuesday Blitz April 4 Early 2023"]
[White "Timofeev, Artyom"]
[Black "Rakhmatullaev, Almas"]
[WhiteFideId "4140419"]
[BlackFideId "14205793"]
[WhiteElo "2586"]
[BlackElo "2221"]
[Result "1/2-1/2"]
[Round "11"]
[TimeControl "180+2"]
[Date "2023.04.04"]
[WhiteClock "0:00:14"]
[BlackClock "0:00:12"]

1. c4 {[%clk 0:03:00]}  Nf6 {[%clk 0:02:58]} 2. Nc3 {[%clk 0:02:59]}  g6 {[%clk 0:02:59]} 3. g3 {[%clk 0:02:58]}  Bg7 {[%clk 0:02:59]} 4. Bg2 {[%clk 0:02:59]}  O-O {[%clk 0:03:00]} 5. Nf3 {[%clk 0:02:58]}  d6 {[%clk 0:03:00]} 6. O-O {[%clk 0:02:58]}  e5 {[%clk 0:02:53]} 7. d3 {[%clk 0:02:58]}  Nc6 {[%clk 0:02:48]} 8. Rb1 {[%clk 0:02:57]}  Nh5 {[%clk 0:02:46]} 9. b4 {[%clk 0:02:54]}  f5 {[%clk 0:02:47]} 10. b5 {[%clk 0:02:54]}  Ne7 {[%clk 0:02:47]} 11. Bg5 {[%clk 0:02:45]}  h6 {[%clk 0:02:42]} 12. Bxe7 {[%clk 0:02:45]}  Qxe7 {[%clk 0:02:43]} 13. Nd5 {[%clk 0:02:44]}  Qf7 {[%clk 0:02:43]} 14. Nd2 {[%clk 0:02:40]}  Be6 {[%clk 0:02:34]} 15. a4 {[%clk 0:02:37]}  Rab8 {[%clk 0:02:26]} 16. a5 {[%clk 0:02:37]}  f4 {[%clk 0:02:18]} 17. Ne4 {[%clk 0:02:31]}  Kh8 {[%clk 0:02:07]} 18. b6 {[%clk 0:02:28]}  axb6 {[%clk 0:02:05]} 19. axb6 {[%clk 0:02:28]}  c6 {[%clk 0:02:04]} 20. Nc7 {[%clk 0:02:29]}  Qd7 {[%clk 0:01:54]} 21. Nxe6 {[%clk 0:02:22]}  Qxe6 {[%clk 0:01:55]} 22. Qb3 {[%clk 0:02:20]}  g5 {[%clk 0:01:49]} 23. h3 {[%clk 0:01:40]}  g4 {[%clk 0:01:34]} 24. hxg4 {[%clk 0:01:40]}  Qxg4 {[%clk 0:01:35]} 25. Bf3 {[%clk 0:01:39]}  Qg6 {[%clk 0:01:34]} 26. Kg2 {[%clk 0:01:38]}  fxg3 {[%clk 0:01:27]} 27. Bxh5 {[%clk 0:01:37]}  Qxh5 {[%clk 0:01:24]} 28. Nxg3 {[%clk 0:01:36]}  Qg6 {[%clk 0:01:23]} 29. Rh1 {[%clk 0:01:24]}  Rf4 {[%clk 0:01:22]} 30. Rbf1 {[%clk 0:01:22]}  Rbf8 {[%clk 0:01:21]} 31. Rh3 {[%clk 0:01:16]}  Qf7 {[%clk 0:01:12]} 32. f3 {[%clk 0:01:12]}  Rf6 {[%clk 0:00:50]} 33. Qb4 {[%clk 0:01:06]}  Rg6 {[%clk 0:00:47]} 34. Qd2 {[%clk 0:00:57]}  d5 {[%clk 0:00:48]} 35. cxd5 {[%clk 0:00:55]}  cxd5 {[%clk 0:00:48]} 36. Rfh1 {[%clk 0:00:47]}  Qf4 {[%clk 0:00:46]} 37. Qa5 {[%clk 0:00:32]}  Rg8 {[%clk 0:00:44]} 38. Rg1 {[%clk 0:00:19]}  Bf8 {[%clk 0:00:39]} 39. Kh1 {[%clk 0:00:19]}  Rxg3 {[%clk 0:00:31]} 40. Rhxg3 {[%clk 0:00:18]}  Rxg3 {[%clk 0:00:32]} 41. Rxg3 {[%clk 0:00:18]}  Qxg3 {[%clk 0:00:33]} 42. Qxd5 {[%clk 0:00:17]}  Qe1+ {[%clk 0:00:32]} 43. Kg2 {[%clk 0:00:18]}  Qxe2+ {[%clk 0:00:33]} 44. Kg3 {[%clk 0:00:18]}  Qe3 {[%clk 0:00:33]} 45. Qxb7 {[%clk 0:00:15]}  Qg5+ {[%clk 0:00:27]} 46. Kh3 {[%clk 0:00:15]}  Qf5+ {[%clk 0:00:25]} 47. Kg2 {[%clk 0:00:14]}  Qg6+ {[%clk 0:00:24]} 48. Kh3 {[%clk 0:00:14]}  Qh5+ {[%clk 0:00:19]} 49. Kg2 {[%clk 0:00:14]}  Qg5+ {[%clk 0:00:17]} 50. Kh3 {[%clk 0:00:14]}  Qf5+ {[%clk 0:00:14]} 51. Kg2 {[%clk 0:00:14]}  Qg6+ {[%clk 0:00:12]} 52. Kh3 {[%clk 0:00:14]}  Qf5+ {[%clk 0:00:12]} 1/2-1/2


[Site "https://www.chess.com"]

[Event "Titled Tuesday Blitz April 4 Early 2023"]
[White "Indjic, Aleksandar"]
[Black "Itgelt, Khuyagtsogt"]
[WhiteFideId "911925"]
[BlackFideId "4902912"]
[WhiteElo "2614"]
[BlackElo "2227"]
[Result "1/2-1/2"]
[Round "11"]
[TimeControl "180+2"]
[Date "2023.04.04"]
[WhiteClock "0:00:48"]
[BlackClock "0:00:09"]

1. d4 {[%clk 0:02:56]}  Nf6 {[%clk 0:02:59]} 2. c4 {[%clk 0:02:49]}  g6 {[%clk 0:02:58]} 3. Nc3 {[%clk 0:02:50]}  d5 {[%clk 0:02:58]} 4. Nf3 {[%clk 0:02:50]}  Bg7 {[%clk 0:02:58]} 5. h4 {[%clk 0:02:51]}  h5 {[%clk 0:02:58]} 6. Bg5 {[%clk 0:02:46]}  Ne4 {[%clk 0:02:50]} 7. cxd5 {[%clk 0:02:44]}  Nxc3 {[%clk 0:02:36]} 8. bxc3 {[%clk 0:02:45]}  Qxd5 {[%clk 0:02:37]} 9. Nd2 {[%clk 0:02:44]}  Qa5 {[%clk 0:02:28]} 10. Qb3 {[%clk 0:02:41]}  c5 {[%clk 0:01:57]} 11. Nc4 {[%clk 0:02:32]}  Qc7 {[%clk 0:01:54]} 12. d5 {[%clk 0:02:31]}  O-O {[%clk 0:01:49]} 13. e4 {[%clk 0:02:32]}  b5 {[%clk 0:01:39]} 14. Nd2 {[%clk 0:02:25]}  b4 {[%clk 0:01:30]} 15. Rc1 {[%clk 0:02:21]}  bxc3 {[%clk 0:01:30]} 16. Rxc3 {[%clk 0:02:21]}  Bxc3 {[%clk 0:01:29]} 17. Qxc3 {[%clk 0:02:22]}  f6 {[%clk 0:01:24]} 18. Be3 {[%clk 0:02:20]}  Ba6 {[%clk 0:01:23]} 19. Bc4 {[%clk 0:02:19]}  Kg7 {[%clk 0:01:20]} 20. O-O {[%clk 0:02:14]}  Bxc4 {[%clk 0:01:20]} 21. Nxc4 {[%clk 0:02:12]}  Nd7 {[%clk 0:01:20]} 22. Rc1 {[%clk 0:01:56]}  Rfc8 {[%clk 0:01:12]} 23. Bd2 {[%clk 0:01:43]}  Nb6 {[%clk 0:01:07]} 24. Ne3 {[%clk 0:01:43]}  c4 {[%clk 0:01:02]} 25. Qc2 {[%clk 0:01:39]}  Rab8 {[%clk 0:00:57]} 26. Bc3 {[%clk 0:01:39]}  Qd7 {[%clk 0:00:50]} 27. e5 {[%clk 0:01:38]}  Nxd5 {[%clk 0:00:43]} 28. Nxd5 {[%clk 0:01:38]}  Qxd5 {[%clk 0:00:44]} 29. Rd1 {[%clk 0:01:38]}  Qf7 {[%clk 0:00:39]} 30. Rd7 {[%clk 0:01:34]}  Rb6 {[%clk 0:00:25]} 31. exf6+ {[%clk 0:01:29]}  Rxf6 {[%clk 0:00:25]} 32. Qe2 {[%clk 0:01:28]}  Re8 {[%clk 0:00:17]} 33. Rxa7 {[%clk 0:01:26]}  Kg8 {[%clk 0:00:11]} 34. Bxf6 {[%clk 0:01:20]}  exf6 {[%clk 0:00:12]} 35. Rxf7 {[%clk 0:01:19]}  Rxe2 {[%clk 0:00:13]} 36. Rxf6 {[%clk 0:01:19]}  Kg7 {[%clk 0:00:04]} 37. Rc6 {[%clk 0:01:18]}  Rxa2 {[%clk 0:00:04]} 38. Rxc4 {[%clk 0:01:18]}  Ra6 {[%clk 0:00:05]} 39. f3 {[%clk 0:01:18]}  Kf6 {[%clk 0:00:05]} 40. Kh2 {[%clk 0:01:19]}  Rb6 {[%clk 0:00:06]} 41. Kh3 {[%clk 0:01:18]}  Ra6 {[%clk 0:00:06]} 42. Rf4+ {[%clk 0:01:16]}  Kg7 {[%clk 0:00:07]} 43. Re4 {[%clk 0:01:16]}  Ra7 {[%clk 0:00:07]} 44. Kg3 {[%clk 0:01:17]}  Rb7 {[%clk 0:00:08]} 45. Rd4 {[%clk 0:01:17]}  Rc7 {[%clk 0:00:08]} 46. Kf4 {[%clk 0:01:18]}  Rf7+ {[%clk 0:00:08]} 47. Ke3 {[%clk 0:01:17]}  Ra7 {[%clk 0:00:09]} 48. g3 {[%clk 0:01:17]}  Ra6 {[%clk 0:00:08]} 49. Ke4 {[%clk 0:01:17]}  Kf6 {[%clk 0:00:09]} 50. Rc4 {[%clk 0:01:14]}  Re6+ {[%clk 0:00:08]} 51. Kf4 {[%clk 0:01:14]}  Ra6 {[%clk 0:00:08]} 52. Ke3 {[%clk 0:01:13]}  Rb6 {[%clk 0:00:08]} 53. Kd4 {[%clk 0:01:13]}  Ra6 {[%clk 0:00:08]} 54. Kd5 {[%clk 0:01:12]}  Ra3 {[%clk 0:00:08]} 55. Rf4+ {[%clk 0:01:09]}  Kg7 {[%clk 0:00:07]} 56. Ke6 {[%clk 0:01:07]}  Ra6+ {[%clk 0:00:07]} 57. Ke5 {[%clk 0:01:07]}  Ra5+ {[%clk 0:00:07]} 58. Kd6 {[%clk 0:01:06]}  Ra6+ {[%clk 0:00:07]} 59. Kc5 {[%clk 0:01:07]}  Ra5+ {[%clk 0:00:08]} 60. Kb4 {[%clk 0:01:07]}  Ra1 {[%clk 0:00:08]} 61. Re4 {[%clk 0:01:07]}  Rg1 {[%clk 0:00:09]} 62. g4 {[%clk 0:01:06]}  hxg4 {[%clk 0:00:09]} 63. fxg4 {[%clk 0:01:07]}  Rh1 {[%clk 0:00:10]} 64. g5 {[%clk 0:01:07]}  Rc1 {[%clk 0:00:09]} 65. Rc4 {[%clk 0:01:07]}  Rh1 {[%clk 0:00:09]} 66. Kc5 {[%clk 0:01:08]}  Kf7 {[%clk 0:00:09]} 67. Kd5 {[%clk 0:01:08]}  Ra1 {[%clk 0:00:08]} 68. Rc7+ {[%clk 0:01:08]}  Kg8 {[%clk 0:00:09]} 69. Ke6 {[%clk 0:01:08]}  Ra6+ {[%clk 0:00:09]} 70. Ke5 {[%clk 0:01:08]}  Ra4 {[%clk 0:00:09]} 71. Kf6 {[%clk 0:01:07]}  Ra6+ {[%clk 0:00:10]} 72. Ke5 {[%clk 0:00:58]}  Ra4 {[%clk 0:00:09]} 73. Re7 {[%clk 0:00:55]}  Rxh4 {[%clk 0:00:07]} 74. Kf6 {[%clk 0:00:55]}  Ra4 {[%clk 0:00:07]} 75. Re6 {[%clk 0:00:53]}  Ra8 {[%clk 0:00:06]} 76. Kxg6 {[%clk 0:00:53]}  Rb8 {[%clk 0:00:06]} 77. Kh6 {[%clk 0:00:52]}  Ra8 {[%clk 0:00:07]} 78. g6 {[%clk 0:00:51]}  Rb8 {[%clk 0:00:07]} 79. Re7 {[%clk 0:00:52]}  Rc8 {[%clk 0:00:07]} 80. Rg7+ {[%clk 0:00:52]}  Kh8 {[%clk 0:00:08]} 81. Rf7 {[%clk 0:00:52]}  Kg8 {[%clk 0:00:08]} 82. Rf6 {[%clk 0:00:52]}  Kh8 {[%clk 0:00:08]} 83. Rf8+ {[%clk 0:00:46]}  Rxf8 {[%clk 0:00:08]} 84. g7+ {[%clk 0:00:47]}  Kg8 {[%clk 0:00:09]} 85. gxf8=Q+ {[%clk 0:00:48]}  Kxf8 {[%clk 0:00:09]} 1/2-1/2


[Site "https://www.chess.com"]

[Event "Titled Tuesday Blitz April 4 Early 2023"]
[White "Salemgareev, Tagir"]
[Black "Kollars, Dmitrij"]
[WhiteFideId "24199052"]
[BlackFideId "12909572"]
[WhiteElo "2360"]
[BlackElo "2584"]
[Result "0-1"]
[Round "11"]
[TimeControl "180+2"]
[Date "2023.04.04"]
[WhiteClock "0:02:09"]
[BlackClock "0:02:22"]

1. d4 {[%clk 0:02:50]}  Nf6 {[%clk 0:02:59]} 2. c4 {[%clk 0:02:49]}  e6 {[%clk 0:02:59]} 3. Nf3 {[%clk 0:02:49]}  d5 {[%clk 0:02:58]} 4. g3 {[%clk 0:02:47]}  Bb4+ {[%clk 0:02:54]} 5. Bd2 {[%clk 0:02:47]}  a5 {[%clk 0:02:54]} 6. Bg2 {[%clk 0:02:46]}  O-O {[%clk 0:02:54]} 7. O-O {[%clk 0:02:46]}  dxc4 {[%clk 0:02:54]} 8. a3 {[%clk 0:02:39]}  Bxd2 {[%clk 0:02:52]} 9. Nbxd2 {[%clk 0:02:39]}  b5 {[%clk 0:02:52]} 10. a4 {[%clk 0:02:39]}  c6 {[%clk 0:02:52]} 11. Qc2 {[%clk 0:02:36]}  Na6 {[%clk 0:02:46]} 12. b3 {[%clk 0:02:32]}  Nb4 {[%clk 0:02:43]} 13. Qc1 {[%clk 0:02:32]}  cxb3 {[%clk 0:02:42]} 14. Nxb3 {[%clk 0:02:31]}  bxa4 {[%clk 0:02:36]} 15. Rxa4 {[%clk 0:02:32]}  Ba6 {[%clk 0:02:35]} 16. Rxa5 {[%clk 0:02:19]}  Bxe2 {[%clk 0:02:34]} 17. Rxa8 {[%clk 0:02:19]}  Qxa8 {[%clk 0:02:35]} 18. Re1 {[%clk 0:02:13]}  Bxf3 {[%clk 0:02:28]} 19. Bxf3 {[%clk 0:02:12]}  Nd3 {[%clk 0:02:29]} 20. Qe3 {[%clk 0:02:09]}  Nxe1 {[%clk 0:02:29]} 21. Qxe1 {[%clk 0:02:10]}  Qa3 {[%clk 0:02:23]} 22. Na5 {[%clk 0:02:09]}  Qxf3 {[%clk 0:02:22]} 0-1


[Site "https://www.chess.com"]

[Event "Titled Tuesday Blitz April 4 Early 2023"]
[White "Naroditsky, Daniel"]
[Black "Adla, Diego"]
[WhiteFideId "2026961"]
[BlackFideId "100072"]
[WhiteElo "2633"]
[BlackElo "2377"]
[Result "1-0"]
[Round "11"]
[TimeControl "180+2"]
[Date "2023.04.04"]
[WhiteClock "0:00:42"]
[BlackClock "0:00:26"]

1. d4 {[%clk 0:03:00]}  Nf6 {[%clk 0:02:59]} 2. Nc3 {[%clk 0:03:01]}  d5 {[%clk 0:02:59]} 3. Bf4 {[%clk 0:03:02]}  a6 {[%clk 0:02:58]} 4. e3 {[%clk 0:03:02]}  b5 {[%clk 0:02:58]} 5. a3 {[%clk 0:03:02]}  Bb7 {[%clk 0:02:57]} 6. Nf3 {[%clk 0:03:03]}  Nbd7 {[%clk 0:02:57]} 7. Bd3 {[%clk 0:03:03]}  c5 {[%clk 0:02:56]} 8. O-O {[%clk 0:03:02]}  e6 {[%clk 0:02:56]} 9. Ne5 {[%clk 0:03:02]}  Nxe5 {[%clk 0:02:52]} 10. Bxe5 {[%clk 0:03:01]}  Bd6 {[%clk 0:02:52]} 11. Qf3 {[%clk 0:03:02]}  Bxe5 {[%clk 0:02:50]} 12. dxe5 {[%clk 0:03:03]}  Nd7 {[%clk 0:02:50]} 13. Qg3 {[%clk 0:03:03]}  Qe7 {[%clk 0:02:47]} 14. f4 {[%clk 0:02:58]}  g6 {[%clk 0:02:45]} 15. Be2 {[%clk 0:02:56]}  O-O-O {[%clk 0:02:42]} 16. a4 {[%clk 0:02:38]}  b4 {[%clk 0:02:41]} 17. Nd1 {[%clk 0:02:39]}  a5 {[%clk 0:02:39]} 18. c3 {[%clk 0:02:39]}  Kb8 {[%clk 0:02:36]} 19. Bb5 {[%clk 0:02:37]}  Ka7 {[%clk 0:02:35]} 20. Nf2 {[%clk 0:02:37]}  Nb6 {[%clk 0:02:33]} 21. Nd3 {[%clk 0:02:30]}  Rc8 {[%clk 0:02:32]} 22. Qf2 {[%clk 0:02:30]}  Rc7 {[%clk 0:02:28]} 23. Nc1 {[%clk 0:02:25]}  Rhc8 {[%clk 0:02:26]} 24. Nb3 {[%clk 0:02:26]}  c4 {[%clk 0:02:06]} 25. Nxa5 {[%clk 0:02:21]}  Ba8 {[%clk 0:02:06]} 26. e4 {[%clk 0:02:22]}  b3 {[%clk 0:01:59]} 27. exd5 {[%clk 0:02:13]}  Bxd5 {[%clk 0:01:53]} 28. Nxb3 {[%clk 0:02:03]}  cxb3 {[%clk 0:01:45]} 29. a5 {[%clk 0:02:04]}  Qc5 {[%clk 0:01:45]} 30. axb6+ {[%clk 0:02:04]}  Kxb6 {[%clk 0:01:45]} 31. Bd3 {[%clk 0:02:02]}  Qxf2+ {[%clk 0:01:44]} 32. Kxf2 {[%clk 0:02:03]}  Ra7 {[%clk 0:01:38]} 33. Rxa7 {[%clk 0:02:02]}  Kxa7 {[%clk 0:01:38]} 34. Ra1+ {[%clk 0:02:03]}  Kb6 {[%clk 0:01:38]} 35. g3 {[%clk 0:02:01]}  h5 {[%clk 0:01:34]} 36. h4 {[%clk 0:01:59]}  Rc7 {[%clk 0:01:34]} 37. Ra6+ {[%clk 0:01:58]}  Kb7 {[%clk 0:01:34]} 38. Ke3 {[%clk 0:01:58]}  Rd7 {[%clk 0:01:33]} 39. Ra4 {[%clk 0:01:56]}  Kc6 {[%clk 0:01:30]} 40. Rb4 {[%clk 0:01:51]}  Kc5 {[%clk 0:01:27]} 41. Rb5+ {[%clk 0:01:51]}  Kc6 {[%clk 0:01:27]} 42. c4 {[%clk 0:01:50]}  Bg2 {[%clk 0:01:25]} 43. Rxb3 {[%clk 0:01:51]}  Ra7 {[%clk 0:01:23]} 44. Rb5 {[%clk 0:01:46]}  Ra1 {[%clk 0:01:22]} 45. b4 {[%clk 0:01:43]}  Bh1 {[%clk 0:01:20]} 46. Kd4 {[%clk 0:01:32]}  Rg1 {[%clk 0:01:19]} 47. c5 {[%clk 0:01:21]}  Rxg3 {[%clk 0:01:18]} 48. Rb8 {[%clk 0:01:16]}  Rg4 {[%clk 0:01:13]} 49. Ke3 {[%clk 0:01:05]}  Rg3+ {[%clk 0:01:11]} 50. Kd4 {[%clk 0:01:05]}  Rg4 {[%clk 0:01:05]} 51. b5+ {[%clk 0:01:05]}  Kc7 {[%clk 0:01:05]} 52. Rf8 {[%clk 0:01:04]}  Rxf4+ {[%clk 0:01:05]} 53. Kc3 {[%clk 0:01:05]}  Bd5 {[%clk 0:01:03]} 54. b6+ {[%clk 0:00:55]}  Kb7 {[%clk 0:01:02]} 55. Re8 {[%clk 0:00:51]}  Rxh4 {[%clk 0:00:54]} 56. Re7+ {[%clk 0:00:51]}  Kb8 {[%clk 0:00:53]} 57. Bb5 {[%clk 0:00:47]}  Rh3+ {[%clk 0:00:30]} 58. Kb4 {[%clk 0:00:46]}  Rh4+ {[%clk 0:00:30]} 59. Ka5 {[%clk 0:00:44]}  Rh1 {[%clk 0:00:29]} 60. c6 {[%clk 0:00:41]}  Ra1+ {[%clk 0:00:28]} 61. Kb4 {[%clk 0:00:41]}  Rb1+ {[%clk 0:00:28]} 62. Kc5 {[%clk 0:00:42]}  Rc1+ {[%clk 0:00:26]} 63. Kd6 {[%clk 0:00:42]} 1-0


[Site "https://www.chess.com"]

[Event "Titled Tuesday Blitz April 4 Early 2023"]
[White "Rohith Krishna S"]
[Black "Movahed, Sina"]
[WhiteFideId "46617051"]
[BlackFideId "42520835"]
[WhiteElo "2270"]
[BlackElo "2225"]
[Result "0-1"]
[Round "11"]
[TimeControl "180+2"]
[Date "2023.04.04"]
[WhiteClock "0:00:18"]
[BlackClock "0:01:05"]

1. d4 {[%clk 0:03:00]}  Nf6 {[%clk 0:03:00]} 2. c4 {[%clk 0:03:00]}  g6 {[%clk 0:03:00]} 3. Nc3 {[%clk 0:03:01]}  Bg7 {[%clk 0:03:01]} 4. e4 {[%clk 0:03:01]}  d6 {[%clk 0:03:01]} 5. Nf3 {[%clk 0:02:59]}  O-O {[%clk 0:03:02]} 6. Bd3 {[%clk 0:02:59]}  e5 {[%clk 0:02:57]} 7. O-O {[%clk 0:03:00]}  Nc6 {[%clk 0:02:53]} 8. d5 {[%clk 0:03:00]}  Ne7 {[%clk 0:02:54]} 9. b4 {[%clk 0:02:59]}  a5 {[%clk 0:02:53]} 10. Ba3 {[%clk 0:02:59]}  axb4 {[%clk 0:02:52]} 11. Bxb4 {[%clk 0:03:00]}  c5 {[%clk 0:02:49]} 12. dxc6 {[%clk 0:02:59]}  Nxc6 {[%clk 0:02:50]} 13. a3 {[%clk 0:03:00]}  Be6 {[%clk 0:02:50]} 14. Nd5 {[%clk 0:03:00]}  Bxd5 {[%clk 0:02:46]} 15. cxd5 {[%clk 0:02:59]}  Nxb4 {[%clk 0:02:46]} 16. axb4 {[%clk 0:03:00]}  Qb6 {[%clk 0:02:46]} 17. Qb3 {[%clk 0:02:59]}  Ng4 {[%clk 0:02:41]} 18. Rac1 {[%clk 0:02:52]}  Rfc8 {[%clk 0:02:37]} 19. Rxc8+ {[%clk 0:02:51]}  Rxc8 {[%clk 0:02:38]} 20. h3 {[%clk 0:02:49]}  Nf6 {[%clk 0:02:36]} 21. Ra1 {[%clk 0:02:48]}  h5 {[%clk 0:02:29]} 22. g3 {[%clk 0:02:24]}  Bh6 {[%clk 0:02:22]} 23. Kg2 {[%clk 0:02:20]}  Kg7 {[%clk 0:02:21]} 24. Rd1 {[%clk 0:01:57]}  Nd7 {[%clk 0:02:17]} 25. Ng1 {[%clk 0:01:55]}  Nc5 {[%clk 0:02:13]} 26. Qa3 {[%clk 0:01:42]}  Nxd3 {[%clk 0:02:09]} 27. Qxd3 {[%clk 0:01:42]}  Qxb4 {[%clk 0:01:55]} 28. Rb1 {[%clk 0:01:42]}  Qd4 {[%clk 0:01:54]} 29. Qxd4 {[%clk 0:01:38]}  exd4 {[%clk 0:01:55]} 30. f4 {[%clk 0:01:23]}  Rc2+ {[%clk 0:01:50]} 31. Kf1 {[%clk 0:01:23]}  h4 {[%clk 0:01:47]} 32. Nf3 {[%clk 0:00:58]}  hxg3 {[%clk 0:01:45]} 33. Nxd4 {[%clk 0:00:59]}  Rf2+ {[%clk 0:01:44]} 34. Kg1 {[%clk 0:00:57]}  Bxf4 {[%clk 0:01:44]} 35. Rb3 {[%clk 0:00:54]}  Be5 {[%clk 0:01:41]} 36. Nf3 {[%clk 0:00:51]}  Bf4 {[%clk 0:01:35]} 37. Nd4 {[%clk 0:00:50]}  Kh6 {[%clk 0:01:33]} 38. Nf3 {[%clk 0:00:43]}  Kh5 {[%clk 0:01:31]} 39. Ne1 {[%clk 0:00:35]}  Re2 {[%clk 0:01:21]} 40. Ng2 {[%clk 0:00:36]}  Be5 {[%clk 0:01:21]} 41. Rb4 {[%clk 0:00:27]}  b5 {[%clk 0:01:15]} 42. Kf1 {[%clk 0:00:25]}  Rf2+ {[%clk 0:01:14]} 43. Kg1 {[%clk 0:00:25]}  Rd2 {[%clk 0:01:06]} 44. Kf1 {[%clk 0:00:24]}  Rd1+ {[%clk 0:01:06]} 45. Ke2 {[%clk 0:00:23]}  Rg1 {[%clk 0:01:06]} 46. Ne1 {[%clk 0:00:18]}  Rxe1+ {[%clk 0:01:05]} 0-1


[Site "https://www.chess.com"]